bitfinex-derivatives/quotes_ETHF0:USTF0_20250330
["timestamp","ask_amount","ask_price","bid_price","bid_amount"]
[1743341949404,0.00828843,1811.2,1811.1,3.60561]
[1743341949606,0.00828843,1811.2,1811.1,16.34614812]
[1743341950605,11.6553,1812.1,1811.4,2.76096]
[1743341950910,14.726,1812.0,1811.7,1.10422]
[1743341951204,14.726,1812.0,1811.6,1.10426]
[1743341951704,14.73428843,1812.0,1811.7,1.10422]
[1743341951911,14.73428843,1812.0,1811.8,1.10417]
[1743341952101,14.73428843,1812.0,1811.5,11.963]
[1743341952411,14.73428843,1812.0,1811.7,1.10422]
[1743341952913,4.31202,1811.8,1811.3,1.10446]
[1743341953105,16.5856,1811.7,1811.1,3.2088]
[1743341953307,16.5856,1811.7,1811.6,1.1043]
[1743341954110,19.7934,1811.7,1811.4,1.10442]
[1743341954510,19.7934,1811.7,1811.5,1.10435]
[1743341954713,19.7934,1811.7,1811.5,1.10432]
[1743341955410,19.7934,1811.7,1811.2,11.5098]
[1743341955617,0.40062477,1811.6,1811.1,3.2088]
[1743341955810,11.4295,1811.5,1811.1,3.2088]
[1743341957015,11.4295,1811.5,1811.4,1.10442]
[1743341958611,11.4295,1811.5,1811.1,3.2088]
[1743341958812,11.4295,1811.5,1811.3,1.10447]
[1743341959115,11.4295,1811.5,1811.2,1.10454]
[1743341959311,11.4295,1811.5,1811.1,3.2088]
[1743341959516,3.2078,1811.3,1810.9,0.00828843]
[1743341959710,3.2078,1811.0,1810.5,5.97021]
[1743341960017,20.0402,1811.2,1811.0,1.10466]
[1743341960212,14.5742,1811.2,1811.0,1.10466]
[1743341960412,20.0352,1811.2,1811.0,1.10464]
[1743341960612,20.0352,1811.2,1810.9,1.10469]
[1743341960812,20.0352,1811.2,1810.9,1.11301843]
[1743341960813,0.40077853,1811.1,1810.9,1.11301843]
[1743341961013,20.0352,1811.2,1810.9,1.11301843]
[1743341961014,11.3664,1811.0,1810.9,1.11301843]
[1743341962614,11.3664,1811.0,1810.9,0.00828843]
[1743341962816,11.3664,1811.0,1810.5,3.2078]
[1743341962817,14.9747372,1811.0,1810.5,3.2078]
[1743341963118,3.2078,1810.8,1810.6,1.10486]
[1743341963318,11.1212,1810.7,1810.6,1.10486]
[1743341963516,11.1212,1810.7,1810.5,3.2078]
[1743341963817,11.1212,1810.7,1810.6,1.10491]
[1743341964915,5.397,1810.9,1810.7,1.10482]
[1743341965116,17.2463,1810.9,1810.5,1.10495]
[1743341965318,3.2078,1810.6,1810.4,0.00828843]
[1743341965525,11.8493,1810.5,1810.4,1.11329843]
[1743341965825,3.2078,1810.8,1810.7,1.10485]
[1743341966121,3.2078,1810.8,1810.6,1.10487]
[1743341966722,5.397,1810.9,1810.5,12.136]
[1743341966923,11.8493,1811.1,1810.7,3.2078]
[1743341967216,7.07398843,1811.3,1811.1,1.10461]
[1743341967412,22.13108843,1811.3,1811.1,1.10461]
[1743341967615,18.92328843,1811.3,1810.8,14.89798]
[1743341967816,22.13108843,1811.3,1811.0,1.10463]
[1743341968012,23.23558843,1811.3,1810.9,1.10469]
[1743341968223,3.2078,1811.1,1810.8,1.10478]
[1743341968414,17.3678,1811.0,1810.6,11.1554]
[1743341968828,17.3678,1811.0,1810.7,1.1048]
[1743341969027,11.9688,1811.0,1810.6,11.1554]
[1743341969228,11.9688,1811.0,1810.8,1.10475]
[1743341969829,11.9688,1811.0,1810.8,1.10474]
[1743341970734,11.9688,1811.0,1810.9,1.10473]
[1743341973131,15.1766,1811.0,1810.5,3.2078]
[1743341973424,3.2078,1810.6,1810.4,0.00828843]
[1743341973622,16.9862,1810.5,1810.4,0.00828843]
[1743341973822,16.9862,1810.5,1810.4,1.11331843]
[1743341974018,11.6412,1810.5,1810.4,1.11331843]
[1743341974331,8.5458,1810.6,1810.4,1.11331843]
[1743341974332,3.2078,1810.6,1810.5,1.10497]
[1743341975119,3.2078,1810.6,1810.5,12.70297]
[1743341975735,11.4193,1810.7,1810.6,1.10491]
[1743341976234,51.025,1810.8,1810.7,1.10485]
[1743341976536,5.313,1811.0,1810.9,1.10473]
[1743341976933,11.4193,1811.1,1811.0,1.10467]
[1743341977133,14.6271,1811.1,1810.7,11.598]
[1743341977329,14.6271,1811.1,1810.7,12.70282]
[1743341977539,14.6271,1811.1,1810.8,1.10478]
[1743341977739,14.6271,1811.1,1810.7,12.70282]
[1743341977933,14.6271,1811.1,1810.8,1.10478]
[1743341978129,14.6271,1811.1,1810.8,1.10476]
[1743341978533,14.6271,1811.1,1810.7,12.70282]
[1743341978735,14.6271,1811.1,1810.8,1.10474]
[1743341979238,14.6271,1811.1,1810.9,1.10471]
[1743341979537,14.6271,1811.1,1810.8,1.10475]
[1743341979842,14.6271,1811.1,1810.7,14.36005]
[1743341980039,19.8931,1811.1,1811.0,1.10467]
[1743341980936,8.4738,1811.1,1811.0,1.10467]
[1743341981844,3.2078,1811.1,1811.0,1.10467]
[1743341982834,4.7139852,1811.1,1810.7,11.598]
[1743341983030,3.2078,1810.8,1810.4,0.00828843]
[1743341983240,3.2078,1810.8,1810.4,11.83538843]
[1743341983434,5.231,1810.9,1810.5,2.76244]
[1743341983640,5.231,1810.9,1810.6,11.8271]
[1743341983841,5.231,1810.9,1810.8,1.10479]
[1743341985132,8.84050551,1810.9,1810.8,1.10479]
[1743341985341,5.63270551,1810.9,1810.8,1.10479]
[1743341985743,8.84050551,1810.9,1810.8,1.10479]
[1743341986246,8.84065588,1810.9,1810.6,11.8271]
[1743341986441,12.09565588,1810.8,1810.7,1.10481]
[1743341987241,12.09573677,1810.8,1810.4,0.00828843]
[1743341987445,3.2078,1810.6,1810.4,0.00828843]
[1743341987743,17.2927634,1810.5,1810.4,0.00828843]
[1743341988546,18.3977334,1810.5,1810.4,0.00828843]
[1743341988732,17.2927634,1810.5,1810.4,0.00828843]
[1743341989747,19.7927634,1810.5,1809.7,4.31321]
[1743341989947,4.31297,1810.2,1809.8,1.10539]
[1743341990249,17.6818634,1810.1,1809.8,1.10539]
[1743341990547,17.2799,1810.1,1809.8,1.10539]
[1743341990744,3.2078,1809.9,1809.3,3.2078]
[1743341990951,12.1159,1809.8,1809.7,1.10546]
[1743341991542,12.1159,1809.8,1809.4,15.19348843]
[1743341991749,12.1159,1809.8,1809.6,1.1055]
[1743341991938,12.1159,1809.8,1809.7,1.10546]
[1743341992143,12.1159,1809.8,1809.6,1.1055]
[1743341992740,12.1159,1809.8,1809.7,11.3196]
[1743341992944,3.21608843,1810.1,1810.0,1.10528]
[1743341993150,0.00828843,1810.1,1809.9,1.10529]
[1743341993451,0.00828843,1810.1,1810.0,12.42488]
[1743341994151,0.00828843,1810.1,1810.0,1.10528]
[1743341995250,0.00828843,1810.1,1810.0,4.31308]
[1743341995853,0.00828843,1810.1,1810.0,6.81308]
[1743341996049,0.00828843,1810.1,1810.0,14.63189596]
[1743341996254,14.43948422,1810.6,1810.5,1.10497]
[1743341997355,0.00828843,1810.7,1810.6,1.10491]
[1743341997655,0.00828843,1810.7,1810.5,1.10493]
[1743341997859,0.00828843,1810.7,1810.4,0.00828843]
[1743341998548,3.2078,1810.6,1810.4,0.00828843]
[1743341998749,12.0377,1810.5,1810.0,3.2078]
[1743341998949,3.2078,1810.4,1810.2,1.10515]
[1743341999150,12.0377,1810.3,1810.2,1.10515]
[1743342000453,12.0377,1810.3,1810.1,1.11345843]
[1743342000652,12.0377,1810.3,1810.1,0.00828843]
[1743342000857,3.2078,1810.2,1810.1,0.00828843]
[1743342001162,12.0377,1810.3,1810.1,1.11344843]
[1743342001861,12.0377,1810.3,1810.1,0.00828843]
[1743342002555,12.0377,1810.3,1810.1,1.11349843]
[1743342002753,12.0377,1810.3,1810.1,0.00828843]
[1743342003663,12.0377,1810.3,1810.1,1.11348843]
[1743342003856,3.2078,1810.4,1810.1,0.00828843]
[1743342004050,3.2078,1810.2,1810.1,0.00828843]
[1743342004253,3.2078,1810.2,1809.7,1.10543]
[1743342004254,1.10523,1810.1,1809.7,1.10543]
[1743342004461,20.4383,1810.0,1809.7,1.10543]
[1743342005460,3.2078,1809.8,1809.6,1.10549]
[1743342005659,12.1805,1809.7,1809.3,3.2078]
[1743342005861,5.04,1809.6,1809.3,3.2078]
[1743342006061,12.1805,1809.5,1809.4,1.10562]
[1743342006257,12.1805,1809.5,1809.2,12.79415]
[1743342006458,15.3883,1809.5,1809.2,12.79415]
[1743342007164,15.3883,1809.5,1809.3,1.1057]
[1743342007857,15.3883,1809.5,1809.2,12.79412]
[1743342008760,15.3883,1809.5,1809.2,11.6884]
[1743342008962,15.3883,1809.5,1809.2,12.79414]
[1743342009861,15.3883,1809.5,1809.2,11.6884]
[1743342010257,15.3883,1809.5,1809.2,12.79416]
[1743342010564,15.3883,1809.5,1809.2,11.6884]
[1743342011763,15.3883,1809.5,1809.4,1.10564]
[1743342011955,3.2078,1809.5,1809.4,1.10564]
[1743342012154,0.00828843,1809.7,1809.6,1.10552]
[1743342012355,14.43948422,1809.9,1809.8,1.1054]
[1743342013555,0.00828843,1810.0,1809.9,1.10534]
[1743342016851,3.21608843,1810.0,1809.7,0.00828843]
[1743342017051,15.30778843,1810.0,1809.7,0.00828843]
[1743342017255,3.2078,1809.8,1809.7,0.00828843]
[1743342019761,14.997,1809.8,1809.7,0.00828843]
[1743342020557,11.7892,1809.8,1809.7,0.00828843]
[1743342020958,4.962,1809.9,1809.8,1.1054]
[1743342021160,4.962,1809.9,1809.8,12.2011]
[1743342021762,0.00828843,1810.0,1809.9,1.10534]
[1743342026365,0.00828843,1810.0,1809.8,12.20106]
[1743342026662,0.00828843,1810.0,1809.7,0.00828843]
[1743342026961,3.21608843,1810.0,1809.7,0.00828843]
[1743342027166,11.3953,1809.9,1809.7,1.11370843]
[1743342027367,4.96928843,1810.0,1809.7,0.00828843]
[1743342027560,4.96928843,1810.0,1809.9,1.10534]
[1743342028461,0.00828843,1810.0,1809.9,1.10534]
[1743342030769,0.00828843,1810.0,1809.9,6.81314]
[1743342031069,14.43948422,1810.4,1810.2,1.10512]
[1743342031273,14.43948422,1810.4,1809.9,12.98574373]
[1743342031274,14.43948422,1810.4,1810.3,11.1414]
[1743342031572,14.43948422,1810.4,1810.3,12.24649]
[1743342032263,11.67641213,1810.4,1810.3,12.24649]
[1743342032965,11.67641213,1810.4,1810.3,15.29929]
[1743342034063,0.00828843,1810.5,1810.4,1.10503]
[1743342034261,4.32105843,1810.5,1810.0,1.10523]
[1743342034465,11.909,1810.4,1810.2,1.10515]
[1743342034670,11.909,1810.4,1810.1,11.1353]
[1743342034868,11.909,1810.4,1810.2,1.10515]
[1743342035173,11.909,1810.4,1809.9,3.2078]
[1743342035370,11.909,1810.4,1810.2,1.10514]
[1743342035572,11.909,1810.4,1810.1,1.10518]
[1743342035873,11.909,1810.4,1810.2,11.1332]
[1743342036167,11.909,1810.4,1810.3,1.10509]
[1743342036364,8.17608843,1810.5,1810.3,1.10509]
[1743342036563,4.96828843,1810.5,1810.4,1.10503]
[1743342036964,0.00828843,1810.5,1810.4,1.10503]
[1743342041178,0.00828843,1810.5,1810.4,13.03053]
[1743342043181,0.00828843,1810.5,1810.4,22.59920262]
[1743342044375,3.21608843,1810.5,1810.4,11.9255]
[1743342044568,3.21608843,1810.5,1810.2,13.00083]
[1743342044773,11.6072,1810.4,1810.2,13.00083]
[1743342045168,3.21608843,1810.5,1810.4,1.10503]
[1743342045376,0.00828843,1810.5,1810.4,1.10503]
[1743342046998,0.00828843,1810.5,1810.1,3.2078]
[1743342047281,3.2078,1810.3,1809.7,0.00828843]
[1743342047476,3.2078,1810.0,1809.8,1.10538]
[1743342047677,11.6705,1809.9,1809.8,1.10538]
[1743342048379,1.1054,1809.8,1809.3,1.10567]
[1743342048585,19.8363,1809.7,1809.3,1.10567]
[1743342048785,19.8363,1809.7,1809.2,3.2078]
[1743342048986,19.8363,1809.7,1809.4,1.10564]
[1743342049384,19.8363,1809.7,1809.1,11.1934]
[1743342049582,19.84458843,1809.7,1809.5,1.10556]
[1743342049776,19.84458843,1809.7,1809.6,1.10552]
[1743342049979,16.63678843,1809.7,1809.6,1.10552]
[1743342050182,11.67878843,1809.7,1809.6,1.10552]
[1743342050385,0.00828843,1809.7,1809.6,12.56592]
[1743342050581,1e-08,1809.7,1809.6,12.56592]
[1743342051085,1e-08,1809.7,1809.6,22.12578388]
[1743342051287,7.3494,1810.3,1810.2,1.10515]
[1743342051484,18.4064,1810.3,1810.1,1.1052]
[1743342051985,18.4064,1810.3,1810.2,1.10515]
[1743342052186,8.1648,1810.7,1810.0,5.97093]
[1743342052390,0.00828843,1810.4,1810.1,11.4604]
[1743342052683,0.00828843,1810.4,1810.3,1.10509]
[1743342053381,0.00828843,1810.4,1810.3,13.03479]
[1743342054590,0.00828843,1810.4,1810.3,15.53479]
[1743342055387,0.00828843,1810.4,1810.3,22.84407485]
[1743342056389,0.00828843,1810.4,1810.3,23.39687485]
[1743342057089,0.00828843,1810.4,1810.3,13.03479]
[1743342058085,0.00828843,1810.4,1810.3,20.36210809]
[1743342059791,0.00828843,1810.4,1810.3,22.86210809]
[1743342060383,0.00828843,1810.4,1810.3,20.36210809]
[1743342060589,0.00828843,1810.4,1810.3,20.36310809]
[1743342061693,0.00828843,1810.4,1810.3,22.86310809]
[1743342062007,0.00828843,1810.4,1810.3,20.36310809]
[1743342062798,0.00828843,1810.4,1810.3,22.86310809]
[1743342063596,0.00828843,1810.4,1810.3,20.36310809]
[1743342064192,0.00828843,1810.4,1810.3,0.001]
[1743342064400,0.00828843,1810.4,1810.3,1.10609]
[1743342066090,0.00828843,1810.4,1810.3,13.22109]
[1743342069095,1e-08,1810.4,1810.3,15.72109]
[1743342069292,14.58138823,1810.9,1810.8,1.10479]
[1743342070004,14.58138823,1810.9,1810.8,12.38049]
[1743342071596,14.58138823,1810.9,1810.8,19.40687535]
[1743342071803,0.00828843,1811.0,1810.9,1.10473]
[1743342072006,0.00828843,1811.0,1810.9,15.66893]
[1743342072500,0.00828843,1811.0,1810.9,22.78763325]
[1743342074600,0.00828843,1811.0,1810.9,25.84043325]
[1743342074896,1e-08,1811.0,1810.9,4.31253]
[1743342076000,1e-08,1811.0,1810.9,4.86533]
[1743342076196,1e-08,1811.0,1810.9,4.31253]
[1743342076396,1e-08,1811.0,1810.9,4.86533]
[1743342078599,12.06700001,1811.0,1810.9,4.86533]
[1743342079295,1e-08,1811.0,1810.9,4.86533]
[1743342079703,12.06700001,1811.0,1810.9,4.86533]
[1743342079902,12.06700001,1811.0,1810.9,17.01123]
[1743342080404,12.06700001,1811.0,1810.9,4.31253]
[1743342081799,19.09170001,1811.0,1810.9,4.31253]
[1743342082406,19.09170001,1811.0,1810.9,3.2078]
[1743342082599,19.09170001,1811.0,1810.9,1.10473]
[1743342084512,1.10476,1810.9,1810.4,1.105]
[1743342084707,3.2078,1810.7,1810.5,1.10497]
[1743342084904,1.105,1810.5,1809.9,3.61044127]
[1743342085214,3.2078,1810.3,1810.1,1.1052]
[1743342085512,12.1644,1810.2,1810.0,1.10523]
[1743342085702,12.1644,1810.2,1810.0,0.00828843]
[1743342086009,12.1644,1810.2,1810.1,1.10522]
[1743342088197,12.1644,1810.2,1810.1,13.22952]
[1743342088607,22.69202317,1810.2,1810.1,13.22952]
[1743342089503,10.52762317,1810.2,1810.1,13.22952]
[1743342089700,10.52762317,1810.2,1810.1,20.54783612]
[1743342089912,13.0011,1810.5,1810.4,1.10503]
[1743342092213,12.64412252,1810.8,1810.2,15.0337]
[1743342092506,6.9563,1810.6,1810.5,1.10495]
[1743342093506,17.9767,1810.6,1810.5,1.10495]
[1743342094216,12.64412252,1810.8,1810.7,1.10485]
[1743342094510,23.66452252,1810.8,1810.6,1.10486]
[1743342094710,23.66452252,1810.8,1810.7,1.10485]
[1743342097308,11.0204,1810.8,1810.7,1.10485]
[1743342097609,15.85192252,1810.9,1810.8,1.10479]
[1743342098010,12.64412252,1810.9,1810.8,1.10479]
[1743342099615,1e-08,1811.0,1810.9,1.10473]
[1743342099805,1e-08,1811.0,1810.9,12.13393]
[1743342101806,1e-08,1811.0,1810.9,17.07693]
[1743342102002,1e-08,1811.0,1810.9,26.7147293]
[1743342102913,1e-08,1811.0,1810.9,54.3147293]
[1743342103708,1e-08,1811.0,1810.9,60.63498641]
[1743342105617,1e-08,1811.0,1810.9,33.03498641]
[1743342106020,1e-08,1811.0,1810.9,66.19688641]
[1743342106515,1e-08,1811.0,1810.9,38.59688641]
[1743342108318,1e-08,1811.0,1810.9,25.59198641]
[1743342108519,1e-08,1811.0,1810.9,19.2717293]
[1743342110718,1e-08,1811.0,1810.9,21.7717293]
[1743342111925,12.64412252,1811.7,1811.6,1.1043]
[1743342112125,24.61552252,1811.7,1811.6,1.1043]
[1743342112517,12.64412252,1811.8,1811.7,1.10424]
[1743342113020,12.64412252,1811.8,1811.7,8.41488323]
[1743342113222,10.95412252,1811.8,1811.7,19.61778323]
[1743342113828,10.95412252,1811.8,1811.7,20.0216294]
[1743342114023,8.19471017,1811.8,1811.7,20.0216294]
[1743342114216,6.68271017,1811.8,1811.7,22.5216294]
[1743342114422,2.60738782,1811.8,1811.7,22.5216294]
[1743342114729,11.99276149,1811.9,1811.8,1.10418]
[1743342114922,6.86168908,1811.9,1811.8,9.24798]
[1743342115129,14.75230372,1812.4,1812.3,1.10387]
[1743342115423,14.75230372,1812.4,1812.3,6.03987]
[1743342115621,13.11076937,1812.4,1812.3,15.7234382]
[1743342115923,10.35135702,1812.4,1812.3,33.81265268]
[1743342116125,7.59194467,1812.4,1812.3,33.81265268]
[1743342116324,1.60903193,1812.4,1812.3,33.81265268]
[1743342116520,0.00828843,1812.5,1812.4,1.10381]
[1743342116720,16.56026377,1812.6,1812.5,1.10375]
[1743342116922,13.80085142,1812.6,1812.5,1.10375]
[1743342117120,8.28202672,1812.6,1812.5,22.10081447]
[1743342117315,4.936,1813.4,1812.9,1.10351]
[1743342117823,51.006,1813.5,1812.8,4.935]
[1743342117824,0.00828843,1813.1,1812.8,7.70220843]
[1743342118031,0.00828843,1813.1,1813.0,1.10345]
[1743342119125,0.00828843,1813.1,1813.0,12.44425]
[1743342119324,0.00828843,1813.1,1813.0,19.56048301]
[1743342120226,0.00828843,1813.1,1813.0,22.06048301]
[1743342121528,0.00828843,1813.1,1813.0,13.15168301]
[1743342122329,0.00828843,1813.1,1813.0,25.24208301]
[1743342123340,0.00828843,1813.1,1813.0,27.74208301]
[1743342123640,0.00176216,1813.1,1813.0,27.74208301]
[1743342123843,11.2839,1813.6,1813.5,1.10314]
[1743342124443,11.2839,1813.6,1813.5,8.12380132]
[1743342125742,11.2839,1813.6,1813.5,8.67580132]
[1743342125943,11.2839,1813.6,1813.5,1.65514]
[1743342126240,13.67892567,1813.7,1813.6,1.10308]
[1743342126435,0.00552567,1813.7,1813.6,12.96678]
[1743342126642,0.00552567,1813.7,1813.6,20.09653482]
[1743342127533,0.00552567,1813.7,1813.5,3.7598]
[1743342127534,0.00552567,1813.7,1813.5,0.552]
[1743342127741,3.2078,1813.6,1813.3,3.2078]
[1743342127951,3.2078,1813.6,1813.5,1.10314]
[1743342128334,15.0568,1813.6,1813.5,1.10314]
[1743342128751,11.849,1813.6,1813.5,1.10314]
[1743342130741,14.349,1813.6,1813.3,0.552]
[1743342131052,15.0568,1813.6,1813.2,4.31108]
[1743342131647,15.0568,1813.6,1813.3,1.10326]
[1743342131848,15.0568,1813.6,1813.2,4.3111]
[1743342132057,15.0568,1813.6,1813.2,3.2078]
[1743342132254,3.2078,1813.3,1813.1,1.10338]
[1743342132550,11.992,1813.2,1813.1,1.10338]
[1743342133548,11.992,1813.2,1813.1,8.20940209]
[1743342134352,11.992,1813.2,1813.1,1.10338]
[1743342135650,11.992,1813.2,1813.0,1.10345]
[1743342135849,6.9167,1813.1,1813.0,1.10345]
[1743342136047,6.9167,1813.1,1813.0,1.65545]
[1743342136250,6.9167,1813.1,1813.0,1.10345]
[1743342136448,6.9167,1813.1,1812.8,0.00828843]
[1743342136449,10.1245,1813.1,1812.8,0.00828843]
[1743342136655,11.0646,1813.0,1812.8,1.11183843]
[1743342136948,14.2724,1813.0,1812.9,1.10351]
[1743342137150,11.0646,1813.0,1812.9,8.4035744]
[1743342137350,11.0646,1813.0,1812.9,19.4088744]
[1743342137746,11.0646,1813.0,1812.9,8.4035744]
[1743342137945,11.0646,1813.0,1812.8,0.00828843]
[1743342137946,14.2724,1813.0,1812.8,1.11181843]
[1743342138145,14.2724,1813.0,1812.8,0.00828843]
[1743342138346,14.2724,1813.0,1812.8,1.11180843]
[1743342138548,5.9382,1812.9,1812.8,0.00828843]
[1743342138749,16.9977,1812.9,1812.8,0.00828843]
[1743342139055,16.9977,1812.9,1812.8,8.40769228]
[1743342139248,16.9977,1812.9,1812.8,1.11185843]
[1743342140252,16.9977,1812.9,1812.8,0.00828843]
[1743342140650,16.9977,1812.9,1812.8,1.11185843]
[1743342143754,11.0595,1812.9,1812.8,1.11185843]
[1743342144452,11.0595,1812.9,1812.8,8.16260787]
[1743342147647,14.2673,1812.9,1812.8,0.00828843]
[1743342148050,14.2673,1812.9,1812.8,1.11185843]
[1743342148847,14.2673,1812.9,1812.8,0.00828843]
[1743342149858,18.27273396,1812.9,1812.4,1.10381]
[1743342150154,3.2078,1812.6,1812.4,1.10381]
[1743342150449,11.4834,1812.5,1812.4,1.10381]
[1743342151957,11.4834,1812.5,1812.3,1.11215843]
[1743342152150,3.2078,1812.4,1812.3,0.00828843]
[1743342152650,3.2078,1812.4,1812.3,1.11215843]
[1743342153053,3.21608843,1812.6,1812.5,1.10375]
[1743342153255,0.00828843,1812.6,1812.5,1.10375]
[1743342153459,3.2078,1813.1,1813.0,1.10345]
[1743342153759,5.9888,1813.5,1813.4,1.1032]
[1743342154159,5.9888,1813.5,1813.3,1.10323]
[1743342154458,3.2078,1813.4,1813.3,1.10323]
[1743342154962,5.9888,1813.5,1813.4,1.1032]
[1743342155748,5.9888,1813.5,1813.4,12.7128]
[1743342155954,5.9888,1813.5,1813.4,11.6096]
[1743342156157,5.9888,1813.5,1813.4,12.7128]
[1743342157157,17.7723,1813.5,1813.4,12.7128]
[1743342157854,11.7835,1813.5,1813.4,12.7128]
[1743342158050,3.21332567,1813.6,1813.5,1.10314]
[1743342158255,14.99682567,1813.6,1813.5,1.10314]
[1743342158858,0.00552567,1813.6,1813.5,1.10314]
[1743342159158,0.00552567,1813.6,1813.5,8.11806674]
[1743342160166,0.00552567,1813.6,1813.5,19.90826674]
[1743342163065,3.2078,1814.0,1813.9,1.1029]
[1743342163267,11.0902,1814.3,1814.2,1.10272]
[1743342163568,11.0902,1814.3,1813.9,7.17663207]
[1743342163869,3.2078,1814.1,1813.8,8.27955207]
[1743342164062,11.0902,1814.0,1813.9,1.1029]
[1743342164461,11.0902,1814.0,1813.8,7.25130063]
[1743342164662,11.0902,1814.0,1813.9,1.1029]
[1743342165168,11.0902,1814.0,1813.9,19.5265122]
[1743342165467,11.0902,1814.0,1813.9,12.2835]
[1743342165971,11.0902,1814.0,1813.9,11.1806]
[1743342166270,11.0902,1814.0,1813.9,12.2835]
[1743342166469,11.0902,1814.0,1813.9,11.1806]
[1743342166668,11.0902,1814.0,1813.9,12.2835]
[1743342167058,11.0902,1814.0,1813.9,11.1806]
[1743342167259,11.0902,1814.0,1813.9,12.2835]
[1743342167568,3.2078,1814.1,1814.0,1.10284]
[1743342167961,14.1945,1814.1,1814.0,1.10284]
[1743342168565,3.2078,1814.1,1814.0,8.31244815]
[1743342168969,3.2078,1814.1,1814.0,19.30214815]
[1743342172171,14.9038,1814.5,1814.4,1.1026]
[1743342172470,13.1194,1814.6,1814.5,1.10254]
[1743342172971,25.0972,1814.6,1814.5,1.10254]
[1743342173173,3.2078,1814.7,1814.6,1.10247]
[1743342174673,3.2078,1815.3,1814.6,21.51173238]
[1743342174874,12.0981,1815.3,1814.9,1.10226]
[1743342175079,3.2078,1815.0,1814.9,1.10229]
[1743342175579,3.2078,1815.2,1815.0,1.10223]
[1743342175777,12.0981,1815.1,1815.0,1.10223]
[1743342176277,3.2078,1815.2,1815.1,1.10217]
[1743342176570,3.2078,1815.2,1815.1,12.41627]
[1743342176879,3.2078,1815.2,1815.1,19.53574536]
[1743342177779,3.2078,1815.2,1815.1,7.11947536]
[1743342177970,3.2078,1815.2,1814.9,17.518]
[1743342178172,3.2078,1815.2,1815.1,1.10217]
[1743342178578,3.2078,1815.2,1815.1,13.16497]
[1743342178778,3.2078,1815.2,1815.1,20.40299141]
[1743342178975,15.1766,1815.5,1815.4,1.10199]
[1743342179181,3.2078,1815.5,1815.4,1.10199]
[1743342179371,3.2078,1815.5,1815.4,8.12576638]
[1743342179677,15.1766,1815.5,1815.4,7.02377638]
[1743342179877,15.1766,1815.5,1815.1,12.0628]
[1743342180077,15.1766,1815.5,1815.2,1.10211]
[1743342180274,3.2078,1815.3,1815.2,8.12584638]
[1743342180678,3.2078,1815.3,1815.2,12.63077]
[1743342181073,15.1766,1815.5,1815.4,1.10199]
[1743342181377,15.1766,1815.5,1815.1,4.901]
[1743342181572,12.9618,1815.4,1815.1,4.901]
[1743342181776,3.2078,1815.6,1815.3,8.28832352]
[1743342181981,3.2078,1815.7,1815.5,1.10193]
[1743342182174,11.8994,1815.6,1815.5,1.10193]
[1743342182879,3.2078,1815.7,1815.4,11.5287]
[1743342183079,11.8994,1815.6,1815.5,1.10187]
[1743342183383,11.8994,1815.6,1815.5,8.30075699]
[1743342183574,3.2078,1815.7,1815.5,8.30075699]
[1743342183575,3.2078,1815.7,1815.6,1.10187]
[1743342185787,3.2078,1815.7,1815.2,2.75519]
[1743342185788,5.7078,1815.7,1815.2,1.10208]
[1743342185974,4.899,1815.8,1815.2,1.10205]
[1743342185975,3.2078,1815.3,1815.2,1.10205]
[1743342186477,3.2078,1815.3,1815.0,11.6136]
[1743342186676,3.2078,1815.1,1815.0,1.10223]
[1743342187178,11.4772,1815.2,1815.1,1.10217]
[1743342188082,3.2078,1815.3,1815.2,1.10211]
[1743342188282,3.2078,1815.3,1815.2,12.81121]
[1743342188484,3.2078,1815.3,1815.0,1.1022]
[1743342188676,11.4772,1815.2,1814.8,1.52756964]
[1743342188978,5.8306,1815.1,1814.9,1.10227]
[1743342189174,3.2078,1815.3,1814.8,0.55946469]
[1743342189379,11.4772,1815.2,1814.9,11.7091]
[1743342189681,3.2078,1815.1,1814.8,1.66180469]
[1743342189885,3.2078,1814.9,1814.8,1.66180469]
[1743342190079,11.2119,1815.0,1814.9,1.10229]
[1743342190382,11.2119,1815.0,1814.9,12.28949]
[1743342191182,3.2078,1815.3,1814.9,11.1872]
[1743342191382,14.4197,1815.3,1815.1,1.10214]
[1743342191578,14.4197,1815.3,1814.9,18.31588775]
[1743342191783,14.4197,1815.3,1815.0,1.10221]
[1743342191784,3.2078,1815.1,1815.0,1.10221]
[1743342192285,14.4197,1815.3,1815.2,1.10211]
[1743342193886,3.2078,1815.3,1815.2,1.10211]
[1743342195483,3.2078,1815.3,1815.1,12.84663]
[1743342195688,11.3524,1815.2,1815.1,12.84667]
[1743342195883,11.3524,1815.2,1814.8,0.55946469]
[1743342196082,3.2078,1815.0,1814.8,0.00826469]
[1743342196290,25.5778,1814.9,1814.8,0.00826469]
[1743342196483,25.5778,1814.9,1814.8,1.11061469]
[1743342196991,25.5778,1814.9,1814.8,0.00826469]
[1743342199087,25.5778,1814.9,1814.8,1.11061469]
[1743342199582,25.5778,1814.9,1814.8,0.00826469]
[1743342201495,25.98029084,1814.9,1814.8,0.00826469]
[1743342202187,25.5778,1814.9,1814.8,0.00826469]
[1743342202393,25.98030447,1814.9,1814.8,0.00826469]
[1743342203291,1.10235,1814.8,1814.3,1.10262]
[1743342203494,3.2078,1814.4,1814.3,1.10262]
[1743342204795,22.66,1814.4,1814.3,1.10262]
[1743342206695,0.00818553,1814.5,1814.4,1.1026]
[1743342207094,3.2078,1814.6,1814.5,1.10254]
[1743342207392,3.2078,1814.9,1814.8,1.10235]
[1743342207795,11.2143,1815.0,1814.9,1.10229]
[1743342207994,3.2078,1815.2,1815.0,1.10223]
[1743342208304,10.1584,1815.5,1815.3,1.102]
[1743342208590,21.7473,1815.5,1815.3,1.102]
[1743342208793,21.7473,1815.5,1815.2,0.00826469]
[1743342208988,3.2078,1815.3,1815.2,0.00826469]
[1743342209591,14.7967,1815.3,1815.2,0.00826469]